fUST/lending_fUST_20241215
["ID","MTS","AMOUNT","RATE_DAILY","PERIOD"]
[345377484,1734204642993,-369.11955724,0.00025999,2]
[345377485,1734204643002,-389.45232039,0.00025999,2]
[345377486,1734204643011,-1448.74979553,0.00026,2]
[345377498,1734204646023,-278.9582342,0.000259,2]
[345377499,1734204646034,-1527.97314567,0.00026,2]
[345377500,1734204646078,-8033.18887418,0.00026,2]
[345377501,1734204646088,-186.07353371,0.00026,2]
[345377502,1734204646098,-27104.57831496,0.00026,20]
[345377503,1734204646114,-819.16160565,0.00026,20]
[345377504,1734204646127,-9896.2904401,0.00026,20]
[345377507,1734204979207,160.715379,0.00013973,2]
[345377509,1734205006082,180.56979915,0.0002,2]
[345377587,1734205832171,-160.715379,0.00022174,2]
[345377589,1734205832182,-4801.1831296,0.00023664,2]
[345377591,1734205832192,-181.801877,0.00023722,2]
[345377593,1734205832201,-272.216652,0.00024319,2]
[345377595,1734205832211,-151.0,0.00024373,2]
[345377597,1734205832220,-22913.1200715,0.00024374,2]
[345377599,1734205832230,-182.482,0.00024575,7]
[345377601,1734205832239,-161.667814,0.00024665,2]
[345377603,1734205832249,-4000.0,0.00024997,7]
[345377605,1734205832258,-2154.6906025,0.00025099,2]
[345377607,1734205832268,-322.6513776,0.00025199,2]
[345377609,1734205832277,-272.216652,0.00025219,2]
[345377611,1734205832287,-176.36,0.00025301,2]
[345377613,1734205832297,-9141.77691629,0.00025343,2]
[345377615,1734205832306,-351.5497813,0.00025382,2]
[345377617,1734205832317,-199.8639562,0.00025382,2]
[345377619,1734205832327,-351.5497813,0.00025482,2]
[345377621,1734205832336,-351.5497813,0.00025482,2]
[345377623,1734205832345,-9141.77691629,0.00025752,2]
[345377626,1734205832355,-2154.69060244,0.00025781,2]
[345377628,1734205832364,-195.76811888,0.000258,2]
[345377630,1734205832374,-161.16659657,0.000259,2]
[345377632,1734205832384,-500.0,0.00025999,2]
[345377633,1734205832393,-500.0,0.00025999,2]
[345377635,1734205832403,-500.0,0.00025999,2]
[345377637,1734205832412,-500.0,0.00025999,2]
[345377639,1734205832423,-500.0,0.00025999,2]
[345377641,1734205832432,-500.0,0.00025999,2]
[345377642,1734205832442,-500.0,0.00025999,2]
[345377644,1734205832452,-500.0,0.00025999,2]
[345377646,1734205832462,-500.0,0.00025999,2]
[345377647,1734205832472,-500.0,0.00025999,2]
[345377649,1734205832481,-500.0,0.00025999,2]
[345377650,1734205832491,-500.0,0.00025999,2]
[345377651,1734205832500,-500.0,0.00025999,2]
[345377652,1734205832510,-500.0,0.00025999,2]
[345377653,1734205832519,-500.0,0.00025999,2]
[345377654,1734205832528,-500.0,0.00025999,2]
[345377655,1734205832537,-500.0,0.00025999,2]
[345377656,1734205832547,-500.0,0.00025999,2]
[345377657,1734205832556,-500.0,0.00025999,2]
[345377658,1734205832565,-500.0,0.00025999,2]
[345377659,1734205832575,-186.7228009,0.00025999,2]
[345377660,1734205832584,-500.0,0.00025999,2]
[345377661,1734205832593,-500.0,0.00025999,2]
[345377662,1734205832603,-500.0,0.00025999,2]
[345377663,1734205832613,-618.67228009,0.00025999,2]
[345377664,1734205832623,-500.0,0.00025999,2]
[345377665,1734205832634,-21424.31555784,0.00025999,2]
[345377794,1734205840056,-381.3057805,0.00025999,2]
[345377830,1734205845972,-2075.70095218,0.00025999,2]
[345377831,1734205845982,-186.0735337,0.00025999,2]
[345377833,1734205845991,-26155.37681296,0.00026,20]
[345377834,1734205846002,-53916.243975,0.00026,20]
[345377835,1734205846014,-50461.97319,0.00026,20]
[345377836,1734205846025,-39216.234,0.00026,20]
[345377837,1734205846037,-2532.3,0.00026,20]
[345377841,1734206126397,161.016934,0.00013973,2]
[345377947,1734207038211,-161.016934,0.00022174,2]
[345377948,1734207038220,-299.362927,0.00025,2]
[345377949,1734207038230,-181.801877,0.00025,2]
[345377950,1734207038239,-300.0,0.00025,2]
[345377951,1734207038248,-195.76811888,0.000259,2]
[345377952,1734207038399,-1671.80959867,0.000259,2]
[345377953,1734207038408,-161.16659657,0.000259,2]
[345377954,1734207038418,-299.362927,0.00025925,2]
[345377955,1734207038427,-151.0,0.0002599,120]
[345377956,1734207038436,-300.0,0.00025999,2]
[345377957,1734207038445,-300.0,0.00025999,2]
[345377958,1734207038454,-6107.71102088,0.00026,2]
[345377977,1734207040210,-2040.8022408,0.00026,2]
[345378034,1734207051043,161.15766,0.00013973,2]
[345378070,1734207992376,161.289004,0.00013973,2]
[345378122,1734208232427,-161.289004,0.00022759,2]
[345378123,1734208232437,-179.617756,0.00024734,2]
[345378124,1734208232446,-686.98926311,0.00024839,2]
[345378153,1734208238350,-116.81584379,0.00024839,2]
[345378154,1734208238361,-181.801877,0.00024974,2]
[345378155,1734208238371,-275.443296,0.000255,2]
[345378156,1734208238381,-179.617756,0.00025649,2]
[345378157,1734208238391,-155.1101151,0.00025863,2]
[345378158,1734208238401,-300.0,0.00025899,2]
[345378159,1734208238410,-153.0764359,0.000259,2]
[345378160,1734208238420,-2754.99481856,0.000259,2]
[345378161,1734208238429,-1462.83339888,0.000259,2]
[345378162,1734208238439,-180.94,0.00025998,12]
[345378163,1734208238459,-199.0771486,0.00025999,2]
[345378164,1734208238474,-158.49689427,0.00025999,2]
[345378165,1734208238484,-179.97313502,0.00025999,2]
[345378166,1734208238494,-429.10539736,0.00025999,2]
[345378167,1734208238505,-3711.19115981,0.00026,2]
[345378173,1734208240290,-31210.77163873,0.00026,2]
[345378174,1734208240303,-4276.28404019,0.00026,2]
[345378187,1734208243739,-1137.13679464,0.00026,2]
[345378188,1734208243749,-8862.86320536,0.00026,20]
[345378189,1734208243762,-3850.0,0.00026,20]
[345378197,1734208246303,-5994.56481144,0.00026,20]
[345378198,1734208246315,-25342.2756,0.00026,20]
[345378223,1734208962181,161.420348,0.00013973,2]
[345378269,1734209432549,-493.48963344,0.00022739,2]
[345378277,1734209432661,-602.16573656,0.00022739,2]
[345378278,1734209432672,-161.420348,0.00023435,2]
[345378279,1734209432682,-213.61984095,0.000242,2]
[345378280,1734209432692,-180.761467,0.00024405,2]
[345378281,1734209432702,-30.8859356,0.00024494,2]
[345378282,1734209432717,-394.1819004,0.00024494,2]
[345378283,1734209432726,-194.0780403,0.00024659,2]
[345378284,1734209432736,-458.041,0.000247,2]
[345378285,1734209432745,-153.0764359,0.00025178,2]
[345378286,1734209432755,-153.0,0.0002526,2]
[345378287,1734209432765,-153.0,0.0002526,2]
[345378288,1734209432775,-153.0,0.0002526,2]
[345378289,1734209432788,-153.9076413,0.000253,2]
[345378290,1734209432798,-217.384681,0.000253,2]
[345378291,1734209432808,-157.8072261,0.00025452,2]
[345378292,1734209432818,-153.0,0.00025452,2]
[345378293,1734209432828,-180.761467,0.00025609,2]
[345378294,1734209432837,-300.0,0.00025699,2]
[345378295,1734209432847,-300.0,0.00025699,2]
[345378296,1734209432857,-9201.87812151,0.000257,2]
[345378297,1734209432867,-2528.50402172,0.000259,2]
[345378309,1734209438522,-2203.99585488,0.000259,2]
[345378310,1734209438533,-62.37666805,0.00025973,2]
[345378311,1734209438577,-203.16418533,0.00025973,2]
[345378312,1734209438587,-500.0,0.00025973,2]
[345378313,1734209438597,-358.83417664,0.00025973,2]
[345378314,1734209438607,-586.80329518,0.00025973,2]
[345378315,1734209438616,-500.0,0.00025973,2]
[345378316,1734209438627,-500.0,0.00025973,2]
[345378317,1734209438637,-500.0,0.00025973,2]
[345378318,1734209438647,-180.94,0.00025973,11]
[345378319,1734209438659,-300.37377815,0.00025999,2]
[345378320,1734209438668,-13803.65217902,0.00026,2]
[345378321,1734209438682,-20447.01573968,0.00026,2]
[345378322,1734209438696,-1928.81186912,0.00026,2]
[345378323,1734209438705,-275.92326038,0.00026,2]
[345378324,1734209438716,-18068.10689384,0.00026,20]
[345378337,1734209440445,-2736.27718771,0.00026,20]
[345378363,1734209443508,-13567.51171141,0.00026,20]
[345378365,1734209443619,-4200.00004,0.00026,20]
[345378377,1734209446449,-16320.0,0.00026,20]
[345378396,1734210043653,161.551692,0.00013973,2]
[345378433,1734210542444,288.0,0.0002,3]
[345378434,1734210542654,285.0,0.0002,3]
[345378435,1734210542954,285.0,0.0002,3]
[345378436,1734210543280,285.0,0.0002,3]
[345378468,1734210632766,-300.0,0.00021999,2]
[345378470,1734210632777,-300.0,0.00021999,2]
[345378472,1734210632786,-5440.02838732,0.00022,2]
[345378475,1734210632877,-251.875,0.00022,2]
[345378490,1734210638756,-28572.49610058,0.00022,2]
[345378491,1734210638768,-420.0,0.00023906,2]
[345378492,1734210638778,-17.68831387,0.00024199,2]
[345378493,1734210639005,-402.31168613,0.00024199,2]
[345378495,1734210639017,-161.551692,0.00024224,2]
[345378497,1734210639026,-455.21,0.000247,2]
[345378499,1734210639036,-177.560991,0.00024744,2]
[345378501,1734210639045,-348.6317953,0.0002484,2]
[345378503,1734210639056,-161.667814,0.00024975,2]
[345378505,1734210639067,-184.645,0.0002588,2]
[345378506,1734210639078,-351.5497813,0.000259,2]
[345378507,1734210639088,-1733.59196968,0.000259,2]
[345378541,1734210646720,-172.063942,0.00024725,2]
[345378542,1734210646731,-97.44432061,0.000259,2]
[345378543,1734210646742,-587.0,0.00025977,2]
[345378544,1734210646752,-500.0,0.00025999,2]
[345378545,1734210646762,-584.94320205,0.00025999,2]
[345378546,1734210646771,-180.94,0.00025999,12]
[345378548,1734210646781,-210.2616447,0.00025999,2]
[345378549,1734210646790,-857.48111945,0.00026,2]
[345378550,1734210646799,-22759.86577119,0.00026,2]
[345378551,1734210646811,-18010.45478315,0.00026,2]
[345378552,1734210646823,-5325.5062984,0.00026,2]
[345378553,1734210646832,-14834.4937016,0.00026,20]
[345378555,1734211023275,161.651838,0.00013973,2]
[345378668,1734211832055,-194.0780403,0.00024066,2]
[345378669,1734211832066,-176.760873,0.00024505,2]
[345378670,1734211832075,-91.3890867,0.0002459,2]
[345378713,1734211837906,-339.9485581,0.0002459,2]
[345378715,1734211837916,-753.97351472,0.00024648,2]
[345378717,1734211837936,-6068.51723748,0.00024648,2]
[345378718,1734211837946,-887.8052839,0.00024663,2]
[345378719,1734211837956,-455.365,0.000247,2]
[345378721,1734211837966,-177.994577,0.00024778,2]
[345378722,1734211837975,-11.68878767,0.00024999,2]
[345378734,1734211839994,-268.20779954,0.00024999,2]
[345378748,1734211963506,161.743638,0.00013973,2]
[345378804,1734212879607,163.40763,0.00013973,2]
[345378846,1734213032071,-2341.80257104,0.00024,2]
[345378848,1734213032133,-681.69947659,0.00024,2]
[345378849,1734213032195,-157.49795237,0.00024,2]
[345378850,1734213032204,-175.360665,0.00024283,2]
[345378851,1734213032214,-4011.27445292,0.0002449,2]
[345378852,1734213032225,-300.0,0.00024518,2]
[345378853,1734213032236,-300.0,0.00024518,2]
[345378854,1734213032245,-12245.83660331,0.00024519,2]
[345378855,1734213032258,-7628.17384029,0.00024519,2]
[345378892,1734213043215,-889.57963781,0.00024519,2]
[345378952,1734213866842,164.932956,0.00013973,2]
[345378997,1734214232387,-6131.05014468,0.00023879,2]
[345378998,1734214232398,-175.360665,0.00024265,2]
[345378999,1734214232408,-300.0,0.00024319,2]
[345379000,1734214232421,-300.0,0.00024319,2]
[345379001,1734214232430,-6131.05014468,0.0002432,2]
[345379002,1734214232441,-189.001,0.00024579,7]
[345379003,1734214232451,-436.483,0.000247,2]
[345379004,1734214232460,-11042.0,0.00025,2]
[345379005,1734214232469,-164.932956,0.00025156,2]
[345379007,1734214232479,-351.5497813,0.00025178,2]
[345379009,1734214232489,-351.5497813,0.00025178,2]
[345379010,1734214232498,-351.5497813,0.000252,2]
[345379011,1734214232507,-351.5497813,0.000252,2]
[345379012,1734214232516,-6887.35247944,0.00025378,2]
[345379046,1734214238658,-1357.41546092,0.00025378,2]
[345379051,1734214240296,-9973.45350914,0.00025378,2]
[345379052,1734214240307,-19356.53707121,0.00025378,2]
[345379053,1734214240318,-2206.302036,0.00025378,7]
[345379054,1734214240329,-2206.302036,0.00025378,7]
[345379055,1734214240341,-151.0,0.00025378,7]
[345379056,1734214240352,-151.0,0.00025378,7]
[345379057,1734214240363,-151.0,0.00025378,7]
[345379058,1734214240373,-151.0,0.00025378,7]
[345379060,1734214240384,-181.715477,0.00025378,7]
[345379061,1734214240394,-181.715477,0.00025378,7]
[345379062,1734214240405,-181.715477,0.00025378,7]
[345379063,1734214240415,-181.715477,0.00025378,7]
[345379064,1734214240427,-417.139337,0.00025378,7]
[345379065,1734214240437,-417.139337,0.00025378,7]
[345379066,1734214240447,-417.139337,0.00025378,7]
[345379067,1734214240457,-417.139337,0.00025378,7]
[345379068,1734214240469,-729.12918049,0.00025379,2]
[345379069,1734214240479,-151.0,0.0002538,7]
[345379070,1734214240490,-151.0,0.0002538,7]
[345379071,1734214240501,-152.627305,0.0002538,7]
[345379072,1734214240511,-151.0,0.0002538,7]
[345379073,1734214240520,-151.0,0.0002538,7]
[345379074,1734214240530,-210.932907,0.0002538,7]
[345379075,1734214240540,-210.932907,0.0002538,7]
[345379076,1734214240550,-210.932907,0.0002538,7]
[345379077,1734214240560,-210.932907,0.0002538,7]
[345379078,1734214240571,-198.025831,0.0002538,7]
[345379079,1734214240581,-198.025831,0.0002538,7]
[345379080,1734214240591,-198.025831,0.0002538,7]
[345379081,1734214240602,-198.025831,0.0002538,7]
[345379082,1734214240612,-153.540891,0.0002538,7]
[345379083,1734214240623,-151.0,0.0002538,7]
[345379084,1734214240633,-239.767616,0.0002538,7]
[345379085,1734214240644,-151.0,0.0002538,7]
[345379086,1734214240655,-596.217825,0.0002538,7]
[345379087,1734214240666,-596.217825,0.0002538,7]
[345379088,1734214240677,-596.217825,0.0002538,7]
[345379089,1734214240687,-596.217825,0.0002538,7]
[345379090,1734214240698,-596.217825,0.0002538,7]
[345379091,1734214240708,-596.217825,0.0002538,7]
[345379092,1734214240718,-151.0,0.0002538,7]
[345379093,1734214240728,-151.0,0.0002538,7]
[345379094,1734214240738,-151.0,0.0002538,7]
[345379095,1734214240747,-151.0,0.0002538,7]
[345379096,1734214240759,-151.0,0.0002538,7]
[345379097,1734214240769,-151.0,0.0002538,7]
[345379098,1734214240779,-153.770718,0.0002538,7]
[345379099,1734214240788,-170.247273,0.0002538,7]
[345379100,1734214240798,-170.247273,0.0002538,7]
[345379101,1734214240808,-170.247273,0.0002538,7]
[345379102,1734214240819,-170.247273,0.0002538,7]
[345379103,1734214240831,-170.247273,0.0002538,7]
[345379104,1734214240842,-170.247273,0.0002538,7]
[345379105,1734214240852,-170.247273,0.0002538,7]
[345379106,1734214240862,-170.247273,0.0002538,7]
[345379107,1734214240872,-283.277141,0.0002538,7]
[345379108,1734214240883,-283.277141,0.0002538,7]
[345379109,1734214240893,-283.277141,0.0002538,7]
[345379110,1734214240903,-283.277141,0.0002538,7]
[345379111,1734214240914,-283.277141,0.0002538,7]
[345379112,1734214240924,-283.277141,0.0002538,7]
[345379113,1734214240934,-283.277141,0.0002538,7]
[345379114,1734214240943,-283.277141,0.0002538,7]
[345379115,1734214240953,-199.547778,0.0002538,7]
[345379116,1734214240963,-199.547778,0.0002538,7]
[345379117,1734214240973,-199.547778,0.0002538,7]
[345379118,1734214240982,-199.547778,0.0002538,7]
[345379119,1734214240992,-199.547778,0.0002538,7]
[345379120,1734214241004,-199.547778,0.0002538,7]
[345379121,1734214241014,-199.547778,0.0002538,7]
[345379122,1734214241024,-199.547778,0.0002538,7]
[345379123,1734214241034,-415.132765,0.0002538,7]
[345379124,1734214241044,-415.132765,0.0002538,7]
[345379125,1734214241055,-415.132765,0.0002538,7]
[345379126,1734214241065,-415.132765,0.0002538,7]
[345379127,1734214241079,-415.132765,0.0002538,7]
[345379128,1734214241089,-151.0,0.0002538,7]
[345379129,1734214241099,-415.132765,0.0002538,7]
[345379130,1734214241109,-415.132765,0.0002538,7]
[345379131,1734214241119,-415.132765,0.0002538,7]
[345379132,1734214241130,-151.0,0.0002538,7]
[345379133,1734214241140,-151.0,0.0002538,7]
[345379134,1734214241150,-151.0,0.0002538,7]
[345379135,1734214241161,-151.0,0.0002538,7]
[345379136,1734214241173,-2206.302036,0.0002538,7]
[345379137,1734214241183,-2206.302036,0.0002538,7]
[345379138,1734214241193,-2206.302036,0.0002538,7]
[345379139,1734214241203,-2206.302036,0.0002538,7]
[345379140,1734214241213,-2206.302036,0.0002538,7]
[345379141,1734214241223,-2206.302036,0.0002538,7]
[345379142,1734214241234,-166.020577,0.0002538,7]
[345379143,1734214241243,-153.631609,0.0002538,7]
[345379144,1734214241253,-151.0,0.0002538,7]
[345379145,1734214241263,-181.715477,0.0002538,7]
[345379146,1734214241273,-181.715477,0.0002538,7]
[345379147,1734214241283,-181.715477,0.0002538,7]
[345379148,1734214241294,-181.715477,0.0002538,7]
[345379149,1734214241304,-181.715477,0.0002538,7]
[345379150,1734214241314,-181.715477,0.0002538,7]
[345379151,1734214241325,-181.715477,0.0002538,7]
[345379152,1734214241335,-181.715477,0.0002538,7]
[345379153,1734214241345,-417.139337,0.0002538,7]
[345379154,1734214241355,-417.139337,0.0002538,7]
[345379155,1734214241368,-417.139337,0.0002538,7]
[345379156,1734214241378,-417.139337,0.0002538,7]
[345379157,1734214241389,-417.139337,0.0002538,7]
[345379158,1734214241400,-417.139337,0.0002538,7]
[345379159,1734214241411,-417.139337,0.0002538,7]
[345379160,1734214241421,-417.139337,0.0002538,7]
[345379161,1734214241431,-1464.82903224,0.0002538,2]
[345379162,1734214241440,-452.69682,0.0002542,15]
[345379163,1734214241451,-500.0,0.00025479,2]
[345379164,1734214241460,-500.0,0.00025479,2]
[345379165,1734214241470,-290.96358668,0.00025479,2]
[345379166,1734214241479,-261.883514,0.00025479,7]
[345379167,1734214241489,-151.0,0.00025479,7]
[345379168,1734214241500,-210.932907,0.00025479,7]
[345379169,1734214241512,-210.932907,0.00025479,7]
[345379170,1734214241522,-198.025831,0.00025479,7]
[345379171,1734214241533,-198.025831,0.00025479,7]
[345379172,1734214241543,-198.025831,0.00025479,7]
[345379173,1734214241554,-198.025831,0.00025479,7]
[345379174,1734214241564,-596.217825,0.00025479,7]
[345379175,1734214241575,-596.217825,0.00025479,7]
[345379176,1734214241586,-596.217825,0.00025479,7]
[345379177,1734214241596,-596.217825,0.00025479,7]
[345379178,1734214241605,-151.0,0.00025479,7]
[345379179,1734214241615,-151.0,0.00025479,7]
[345379180,1734214241625,-151.0,0.00025479,7]
[345379181,1734214241635,-151.000002,0.00025479,7]
[345379182,1734214241645,-170.247273,0.00025479,7]
[345379183,1734214241655,-170.247273,0.00025479,7]
[345379184,1734214241665,-170.247273,0.00025479,7]
[345379185,1734214241677,-170.247273,0.00025479,7]
[345379186,1734214241687,-170.247273,0.00025479,7]
[345379187,1734214241698,-170.247273,0.00025479,7]
[345379188,1734214241709,-283.277141,0.00025479,7]
[345379189,1734214241719,-283.277141,0.00025479,7]
[345379190,1734214241729,-283.277141,0.00025479,7]
[345379191,1734214241739,-283.277141,0.00025479,7]
[345379192,1734214241749,-283.277141,0.00025479,7]
[345379193,1734214241759,-283.277141,0.00025479,7]
[345379194,1734214241769,-199.547778,0.00025479,7]
[345379195,1734214241780,-199.547778,0.00025479,7]
[345379196,1734214241952,-199.547778,0.00025479,7]
[345379197,1734214241964,-199.547778,0.00025479,7]
[345379198,1734214241975,-199.547778,0.00025479,7]
[345379199,1734214241985,-199.547778,0.00025479,7]
[345379200,1734214241994,-415.132765,0.00025479,7]
[345379201,1734214242005,-415.132765,0.00025479,7]
[345379202,1734214242015,-415.132765,0.00025479,7]
[345379203,1734214242025,-415.132765,0.00025479,7]
[345379204,1734214242035,-415.132765,0.00025479,7]
[345379205,1734214242046,-415.132765,0.00025479,7]
[345379206,1734214242055,-269.610362,0.00025479,7]
[345379207,1734214242066,-2206.302036,0.00025479,7]
[345379208,1734214242077,-2206.302036,0.00025479,7]
[345379209,1734214242087,-2206.302036,0.00025479,7]
[345379210,1734214242097,-2206.302036,0.00025479,7]
[345379211,1734214242106,-2206.302036,0.00025479,7]
[345379212,1734214242116,-2206.302036,0.00025479,7]
[345379213,1734214242126,-181.715477,0.00025479,7]
[345379214,1734214242136,-181.715477,0.00025479,7]
[345379215,1734214242146,-181.715477,0.00025479,7]
[345379216,1734214242155,-181.715477,0.00025479,7]
[345379217,1734214242165,-181.715477,0.00025479,7]
[345379218,1734214242175,-181.715477,0.00025479,7]
[345379219,1734214242186,-181.715477,0.00025479,7]
[345379220,1734214242196,-181.71547859,0.00025479,7]
[345379221,1734214242206,-417.139337,0.00025479,7]
[345379222,1734214242216,-417.139337,0.00025479,7]
[345379223,1734214242226,-417.139337,0.00025479,7]
[345379224,1734214242235,-417.139337,0.00025479,7]
[345379225,1734214242245,-417.139337,0.00025479,7]
[345379226,1734214242255,-417.139337,0.00025479,7]
[345379227,1734214242266,-417.139337,0.00025479,7]
[345379228,1734214242277,-417.139336,0.00025479,7]
[345379229,1734214242287,-174381.96,0.0002548,5]
[345379230,1734214242297,-210.932907,0.0002548,7]
[345379231,1734214242306,-210.932907,0.0002548,7]
[345379232,1734214242316,-210.932907,0.0002548,7]
[345379233,1734214242326,-210.932907,0.0002548,7]
[345379234,1734214242336,-210.932907,0.0002548,7]
[345379235,1734214242352,-210.932907,0.0002548,7]
[345379236,1734214242375,-198.025831,0.0002548,7]
[345379237,1734214242386,-198.025831,0.0002548,7]
[345379238,1734214242398,-198.025831,0.0002548,7]
[345379239,1734214242408,-198.025831,0.0002548,7]
[345379240,1734214242418,-198.025831,0.0002548,7]
[345379241,1734214242432,-198.025831,0.0002548,7]
[345379242,1734214242444,-596.217825,0.0002548,7]
[345379243,1734214242455,-596.217825,0.0002548,7]
[345379244,1734214242466,-596.217825,0.0002548,7]
[345379245,1734214242476,-596.217825,0.0002548,7]
[345379246,1734214242487,-596.217825,0.0002548,7]
[345379247,1734214242498,-596.217825,0.0002548,7]
[345379248,1734214242508,-596.217825,0.0002548,7]
[345379249,1734214242518,-596.217825,0.0002548,7]
[345379250,1734214242528,-151.0,0.0002548,7]
[345379251,1734214242538,-151.0,0.0002548,7]
[345379252,1734214242548,-151.0,0.0002548,7]
[345379253,1734214242559,-240.378658,0.0002548,7]
[345379254,1734214242569,-170.247273,0.0002548,7]
[345379255,1734214242580,-170.247273,0.0002548,7]
[345379256,1734214242589,-170.247273,0.0002548,7]
[345379257,1734214242599,-170.247273,0.0002548,7]
[345379258,1734214242611,-170.247273,0.0002548,7]
[345379259,1734214242621,-170.247269,0.0002548,7]
[345379260,1734214242632,-283.277141,0.0002548,7]
[345379261,1734214242643,-283.277141,0.0002548,7]
[345379262,1734214242654,-283.277141,0.0002548,7]
[345379263,1734214242664,-283.277141,0.0002548,7]
[345379264,1734214242675,-283.277141,0.0002548,7]
[345379265,1734214242685,-283.277139,0.0002548,7]
[345379266,1734214242695,-199.547778,0.0002548,7]
[345379267,1734214242706,-199.547778,0.0002548,7]
[345379268,1734214242716,-199.547778,0.0002548,7]
[345379270,1734214242726,-199.547778,0.0002548,7]
[345379272,1734214242737,-199.547778,0.0002548,7]
[345379274,1734214242747,-199.547778,0.0002548,7]
[345379275,1734214242757,-415.132765,0.0002548,7]
[345379276,1734214242768,-415.132765,0.0002548,7]
[345379277,1734214242777,-415.132765,0.0002548,7]
[345379278,1734214242787,-415.132765,0.0002548,7]
[345379280,1734214242798,-415.132765,0.0002548,7]
[345379282,1734214242808,-415.132763,0.0002548,7]
[345379284,1734214242819,-2206.302036,0.0002548,7]
[345379285,1734214242835,-2206.302036,0.0002548,7]
[345379286,1734214242845,-2206.302036,0.0002548,7]
[345379287,1734214242855,-2206.302036,0.0002548,7]
[345379289,1734214242867,-2206.302036,0.0002548,7]
[345379291,1734214242877,-2206.30202979,0.0002548,7]
[345379293,1734214242887,-500.0,0.0002562,2]
[345379295,1734214242897,-210.932907,0.00025697,7]
[345379297,1734214242909,-210.932907,0.00025697,7]
[345379299,1734214242919,-210.932907,0.00025697,7]
[345379301,1734214242933,-210.932907,0.00025697,7]
[345379303,1734214242942,-198.025831,0.00025697,7]
[345379305,1734214242952,-198.025831,0.00025697,7]
[345379307,1734214242963,-198.025831,0.00025697,7]
[345379309,1734214242973,-198.025831,0.00025697,7]
[345379311,1734214242983,-596.217825,0.00025697,7]
[345379313,1734214242994,-596.217829,0.00025697,7]
[345379315,1734214243005,-500.0,0.0002572,2]
[345379316,1734214243015,-179.942837,0.00025786,2]
[345379318,1734214243026,-1464.82903223,0.00025829,2]
[345379320,1734214243037,-516.37757976,0.00025833,2]
[345379322,1734214243048,-501.53001245,0.00025833,2]
[345379323,1734214243059,-210.932907,0.00025834,7]
[345379325,1734214243070,-210.932907,0.00025834,7]
[345379327,1734214243080,-198.025831,0.00025834,7]
[345379328,1734214243090,-198.025837,0.00025834,7]
[345379330,1734214243100,-306.7912912,0.00025863,2]
[345379332,1734214243110,-640.31728924,0.000259,2]
[345379333,1734214243120,-210.932907,0.00025936,7]
[345379335,1734214243130,-210.932903,0.00025936,7]
[345379337,1734214243140,-500.59870951,0.00025973,2]
[345379339,1734214243150,-500.88753932,0.00025973,2]
[345379342,1734214243161,-500.0,0.00025973,2]
[345379344,1734214243170,-500.0,0.00025973,2]
[345379346,1734214243182,-500.0,0.00025973,2]
[345379348,1734214243192,-161.50980185,0.00025973,2]
[345379349,1734214243202,-500.0,0.00025973,2]
[345379351,1734214243211,-151.0,0.0002598,30]
[345379353,1734214243221,-61369.38871978,0.00026,30]
[345379355,1734214243239,-9999.06978741,0.00026,30]
[345379401,1734214246471,-229.4277854,0.00025178,2]
[345379402,1734214246482,-152.0,0.00025757,2]
[345379403,1734214246492,-1916.396362,0.00025935,2]
[345379405,1734214246502,-49136.07703044,0.00026,30]
[345379414,1734214865074,166.458283,0.00013973,2]
[345379583,1734215193353,438975.23553855,0.0001,2]
[345379609,1734215432551,-418.311,0.0002467,2]
[345379610,1734215432562,-304.630043,0.00024755,2]